Cogmind - Beta 9.4 @@@ ROGUE MODE // 2020.02.04 @ 13:43:42 Player: s0lid Result: Destroyed by D-53 Grenadier with Mini Grenade Launcher Performance ------------- Evolutions (0) 0 Regions Visited (4) 800 Robots Destroyed (17) 85 Value Destroyed (317) 317 Prototype IDs (0) 0 Alien Tech Used (0) 0 Bonus (0) 0 TOTAL SCORE: 1202 Bonus ------- None Cogmind --------- Core Integrity 0/250 Matter 285/300 Energy 100/100 System Corruption 0% Temperature Cool (0) Movement Core (50) Location -9/Mines Parts ------- > --- POWER (1) -------- (None) > --- PROPULSION (2) --- (None) > --- UTILITY (2) ------ (None) > --- WEAPON (2) ------- (None) > --- INVENTORY (4) ---- Large Battery (300) ECM Suite Light Armor Plating Datajack Peak State ------------ > --- POWER ------------ Light Nuclear Core > --- PROPULSION ------- Aluminum Leg Aluminum Leg > --- UTILITY ---------- Large Storage Unit Large Storage Unit > --- WEAPON ----------- EM Pulse Gun Assault Rifle > --- INVENTORY -------- Ion Engine Light Ion Engine Aluminum Leg Small Storage Unit High-capacity Matter Pod Compact Matter Pod Visual Processing Unit Sensor Array Targeting Computer ECM Suite Propulsion Shielding Light Armor Plating Light Assault Rifle Light Cannon Datajack Welding Torch [Rating: 10] Favorites ----------- Power Light Nuclear Core Engine Ion Engine Power Core Light Nuclear Core Propulsion Aluminum Leg Leg Aluminum Leg Wheel Wheel Utility Large Storage Unit Storage Large Storage Unit Weapon Light Assault Rifle Energy Gun EM Pulse Gun Ballistic Gun Light Assault Rifle Ballistic Cannon Light Cannon Special Weapon Welding Torch Build | -11 -10 -10 -10 -9 ------- Run | Scr Mat Min Exi Min Slots Evolved . | . . . . . Power . | . . . . . Propulsion . | . . . . . Utility . | . . . . . Weapon . | . . . . . Parts Attached 18 | 7 4 7 . . Power 3 | 1 . 2 . . Engine 2 | 1 . 1 . . Core 1 | . . 1 . . Reactor . | . . . . . Propulsion 5 | 2 1 2 . . Treads . | . . . . . Leg 3 | . 1 2 . . Wheel 2 | 2 . . . . Hover . | . . . . . Flight . | . . . . . Utility 3 | 1 2 . . . Device . | . . . . . Storage 3 | 1 2 . . . Processor . | . . . . . Hackware . | . . . . . Protection . | . . . . . Artifact . | . . . . . Weapon 7 | 3 1 3 . . Energy Gun 2 | 1 1 . . . Energy Cannon . | . . . . . Ballistic Gun 3 | 2 . 1 . . Ballistic Cannon 1 | . . 1 . . Launcher . | . . . . . Special Weapon 1 | . . 1 . . Impact Weapon . | . . . . . Slashing Weapon . | . . . . . Piercing Weapon . | . . . . . Special Melee Weapon . | . . . . . Unidentified Prototypes . | . . . . . Parts Lost 10 | . 2 3 . 5 Power 1 | . . . . 1 Propulsion 4 | . 1 1 . 2 Utility . | . . . . . Weapon 5 | . 1 2 . 2 Highest Loss Streak 5 | . 1 2 . 5 Average Slot Usage (%) 98 | . 97 97 100 85 Engine 5 | . 14 11 . . Core 8 | . . 2 14 5 Leg 19 | . 3 17 28 22 Wheel 7 | . 22 10 . . Storage 27 | . 27 28 28 28 Energy Gun 5 | . 14 13 . . Ballistic Gun 13 | . 14 13 14 14 Ballistic Cannon 8 | . . . 14 14 Naked Turns 1 | . . . . 1 Heaviest Build 41 | 12 41 41 41 41 Greatest Support 26 | 26 26 20 20 20 Greatest Overweight (x) 4 | 1 4 4 2 3 Average Overweight (x) 2 | . 1 3 2 2 Largest Inventory Capacity 16 | 6 16 16 16 16 Average Capacity 15 | 4 15 16 16 15 Most Carried 16 | 4 16 16 15 15 Average Carried 13 | 1 11 15 14 14 Final Capacity 16 | 6 16 16 16 4 Final Carried 15 | 4 13 14 15 4 Class Distribution -------------------- 100% | Mutant Dominant Class ---------------- Mutant | -10/Materials Mutant | -10/Mines Mutant | -10/Exiles Mutant | -9/Mines Resources | -11 -10 -10 -10 -9 ----------- Run | Scr Mat Min Exi Min Matter Collected 654 | 211 286 157 . . Remotely . | . . . . . Salvage Created 517 | . 286 231 . . Parts 31 | . 16 15 . . Haulers Intercepted 1 | . 1 . . . Recyclers Shooed 1 | . 1 . . . Parts Field Recycled . | . . . . . Retrieved Matter . | . . . . . Parts Self-Destructed . | . . . . . Prevented . | . . . . . Kills | -11 -10 -10 -10 -9 ------- Run | Scr Mat Min Exi Min Combat Hostiles Destroyed 12 | . 6 6 . . Guns 10 | . 5 5 . . AOE 1 | . . 1 . . Classes Destroyed 6 | . 5 1 . . Worker 2 | . . 2 . . Tunneler 1 | . 1 . . . Hauler 1 | . 1 . . . Watcher 1 | . 1 . . . Swarmer 6 | . 3 3 . . Grunt 6 | . 3 3 . . Best Kill Streak 3 | . 3 3 . . Combat Bots Only 3 | . 3 3 . . Max Kills in Single Turn 1 | . 1 1 . . Gunslinging . | . . . . . Exploded 1 | . . 1 . . Melee . | . . . . . Uniques/NPCs Destroyed . | . . . . . Combat | -11 -10 -10 -10 -9 -------- Run | Scr Mat Min Exi Min Damage Taken 1208 | . 294 313 . 601 Core 276 | . 83 32 . 161 Absorbed by Shields . | . . . . . Core Remaining (%) 100 | 100 . . . . Volleys Fired 63 | . 43 20 . . Largest 2 | . 2 2 . . Hottest 60 | . 60 60 . . Shots Fired 126 | . 86 40 . . Gun 126 | . 86 40 . . Cannon . | . . . . . Launcher . | . . . . . Special . | . . . . . Kinetic 63 | . 43 20 . . Thermal 17 | . 17 . . . Explosive . | . . . . . Electromagnetic 46 | . 26 20 . . Robot Hit Streak 10 | . 6 10 . . Robot Miss Streak 4 | . 4 2 . . Penetration Max . | . . . . . Secondary Targets 3 | . . 3 . . Max Gunslinging Chain 1 | . . 1 . . Shots Hit Robots 88 | . 57 31 . . Core Hits 26 | . 13 13 . . Critical Hits . | . . . . . Critical Kills . | . . . . . Critical Parts Destroyed . | . . . . . Melee Attacks . | . . . . . Impact . | . . . . . Slashing . | . . . . . Piercing . | . . . . . Sneak Attacks . | . . . . . Combat Hostiles . | . . . . . Follow-up Attacks . | . . . . . Damage Inflicted 1217 | . 685 532 . . Guns 1088 | . 685 403 . . Cannons . | . . . . . Explosions 129 | . . 129 . . Melee . | . . . . . Ramming . | . . . . . Kinetic 470 | . 316 154 . . Thermal 228 | . 99 129 . . Explosive . | . . . . . Electromagnetic 519 | . 270 249 . . Impact . | . . . . . Slashing . | . . . . . Piercing . | . . . . . Highest Corruption . | . . . . . Average Corruption . | . . . . . Corruption Purged . | . . . . . Overload Shots . | . . . . . Overflow Damage 61 | . . 61 . . Projectiles . | . . . . . Explosions 61 | . . 61 . . Melee . | . . . . . Knockbacks . | . . . . . Impact . | . . . . . Kinetic . | . . . . . Secondary . | . . . . . Self-Inflicted Damage 38 | . . 38 . . Shots 1 | . . 1 . . Rammed . | . . . . . Targets Rammed . | . . . . . Kicked . | . . . . . Crushed . | . . . . . Highest Temperature 126 | . 81 126 . . Average Temperature 43 | . 36 49 . . Received Heat Transfer 231 | . 105 126 . . Siege Activations . | . . . . . Robots Corrupted 2 | . 2 . . . Combat Hostiles 1 | . 1 . . . Parts Fried 1 | . 1 . . . Impact Corruptions . | . . . . . Robots Melted . | . . . . . Combat Hostiles . | . . . . . Parts Melted 1 | . . 1 . . Heat Transferred 375 | . 225 150 . . Parts Sabotaged . | . . . . . Parts Stolen . | . . . . . Parts Stripped . | . . . . . Power Chain Reactions 2 | . . 2 . . Missiles Intercepted . | . . . . . Alert | -11 -10 -10 -10 -9 ------- Run | Scr Mat Min Exi Min Peak Influence 135 | . 129 135 . . Average Influence 35 | . 39 35 . . Maximum Alert Level . | . . . . . Low Security (%) 100 | 100 100 100 . 100 Level 1 . | . . . . . Level 2 . | . . . . . Level 3 . | . . . . . Level 4 . | . . . . . Level 5 . | . . . . . High Security . | . . . . . Max Security . | . . . . . Squads Dispatched 1 | . 1 . . . Investigation . | . . . . . Extermination . | . . . . . Reinforcement 1 | . 1 . . . Assault . | . . . . . Garrison . | . . . . . Intercept . | . . . . . Construction Impeded . | . . . . . Haulers Reinforced . | . . . . . Stealth | -11 -10 -10 -10 -9 --------- Run | Scr Mat Min Exi Min Distress Signals . | . . . . . Communications Jammed . | . . . . . Distress Signals . | . . . . . Times Spotted 26 | . 17 7 . 2 Peak Tracking Total 3 | . 3 3 . 2 Tactical Retreats 2 | . 1 1 . . Traps | -11 -10 -10 -10 -9 ------- Run | Scr Mat Min Exi Min Traps Triggered . | . . . . . Indirectly . | . . . . . Trap Hack Attempts . | . . . . . Triggered . | . . . . . Disarmed . | . . . . . Reprogrammed . | . . . . . Reused . | . . . . . Traps Extracted . | . . . . . Installed . | . . . . . Triggered . | . . . . . Machines | -11 -10 -10 -10 -9 ---------- Run | Scr Mat Min Exi Min Machines Disabled . | . . . . . Max in Single Turn . | . . . . . Machines Sabotaged . | . . . . . Garrisons Compromised . | . . . . . Overloaded Fab Kills . | . . . . . Fab Network Shutdowns . | . . . . . Hacking | -11 -10 -10 -10 -9 --------- Run | Scr Mat Min Exi Min Machines Accessed 8 | . 4 . 4 . Terminals 4 | . 4 . . . Fabricators . | . . . . . Repair Stations . | . . . . . Recycling Units . | . . . . . Scanalyzers . | . . . . . Garrison Access . | . . . . . Total Hacks 69 | . 21 . 48 . Successful 62 | . 14 . 48 . Failed 7 | . 7 . . . Catastrophic 2 | . 2 . . . Database Lockouts . | . . . . . Manual 14 | . 14 . . . Terminals 21 | . 21 . . . Fabricators . | . . . . . Repair Stations . | . . . . . Recycling Units . | . . . . . Scanalyzers . | . . . . . Garrison Access . | . . . . . Terminal Hacks 58 | . 10 . 48 . Record 48 | . . . 48 . Part Schematic 3 | . 3 . . . Branch Access Points 1 | . 1 . . . Alert Level 1 | . 1 . . . Unreport Threat 2 | . 2 . . . Locate Traps 1 | . 1 . . . Recall Reinforcements 1 | . 1 . . . Hauler Manifests 1 | . 1 . . . Fabricator Hacks . | . . . . . Repair Station Hacks . | . . . . . Recycling Unit Hacks . | . . . . . Scanalyzer . | . . . . . Garrison Access Hacks . | . . . . . Unauthorized Hacks 9 | . 9 . . . Terminals 4 | . 4 . . . Assimilate 2 | . 2 . . . Botnet 2 | . 2 . . . Fabricators . | . . . . . Repair Stations . | . . . . . Recycling Units . | . . . . . Scanalyzers . | . . . . . Garrison Access . | . . . . . Data Cores Recovered . | . . . . . Used . | . . . . . Hacking Detections 4 | . 4 . . . Full Trace Events . | . . . . . Feedback Events . | . . . . . Feedback Blocked . | . . . . . Robot Schematics Acquired . | . . . . . Robots Built . | . . . . . Matter . | . . . . . Time . | . . . . . Total Robot Build Rating . | . . . . . Part Schematics Acquired 3 | . 3 . . . Parts Built . | . . . . . Matter . | . . . . . Time . | . . . . . Total Part Build Rating . | . . . . . Parts Repaired . | . . . . . Time . | . . . . . Parts Recycled . | . . . . . Recycled Matter . | . . . . . Retrieved Matter . | . . . . . Retrieved Components . | . . . . . Parts Scanalyzed . | . . . . . Part Schematics Acquired . | . . . . . Parts Damaged . | . . . . . Bothacking | -11 -10 -10 -10 -9 ------------ Run | Scr Mat Min Exi Min Used RIF Installer . | . . . . . Robots Hacked . | . . . . . Non-combat . | . . . . . Combat . | . . . . . Robot Hacks Applied . | . . . . . Relay Couplers Released . | . . . . . Robots Rewired . | . . . . . Allies Hacked . | . . . . . Hacks Repelled . | . . . . . Allies | -11 -10 -10 -10 -9 -------- Run | Scr Mat Min Exi Min Total Allies . | . . . . . Largest Group . | . . . . . Highest-Rated Group . | . . . . . Highest-Rated Ally . | . . . . . Total Orders . | . . . . . Ally Attacks . | . . . . . Total Damage . | . . . . . Kills . | . . . . . Allies Corrupted . | . . . . . Allies Melted . | . . . . . Intel | -11 -10 -10 -10 -9 ------- Run | Scr Mat Min Exi Min Robot Analysis Total . | . . . . . Derelict Logs Recovered 4 | . . 2 . 2 Drone Launches . | . . . . . Drone Recoveries . | . . . . . Exploration | -11 -10 -10 -10 -9 ------------- Run | Scr Mat Min Exi Min Turns Passed 3155 | 47 873 441 1739 55 Spaces Moved 1976 | 38 647 294 966 31 Core 5 | 3 . . . 2 Treads . | . . . . . Legs 1039 | . . 44 966 29 Wheels 932 | 35 647 250 . . Hover . | . . . . . Flight . | . . . . . Fastest Speed 50 | 50 90 110 180 50 Average Speed 145 | 88 106 125 180 175 Slowest Speed 210 | 100 120 180 180 210 Overloaded Moves . | . . . . . Propulsion Burnouts . | . . . . . Robots Hopped . | . . . . . Cave-ins Triggered . | . . . . . Exploration Rate (%) 45 | 3 64 53 93 13 Regions Visited 4 Branch Regions 3 Pre-discovered Areas 2 | . . . 1 1 Known Exits Taken 1 | . 1 . . . Unknown Exits Taken 3 | 1 . 1 1 . Scrap Searched 1 | . . 1 . . Spaces Dug . | . . . . . Terrain Destroyed 10 | . . 10 . . Melee . | . . . . . Projectile . | . . . . . AOE 10 | . . 10 . . Actions | -11 -10 -10 -10 -9 --------- Run | Scr Mat Min Exi Min Total 2121 | 48 746 329 967 31 Wait 36 | . 35 . 1 . Move 1972 | 37 646 293 965 31 Hop . | . . . . . Pick Up 23 | 3 14 5 1 . Fast Attach 9 | 7 1 1 . . Attach 5 | . 2 3 . . Detach 2 | 1 . 1 . . Swap 4 | . 1 3 . . Drop 7 | . 4 3 . . Fire 63 | . 43 20 . . Melee . | . . . . . Ram . | . . . . . Kick . | . . . . . Crush . | . . . . . Escape Stasis . | . . . . . Rewire . | . . . . . Trap . | . . . . . Miscellaneous . | . . . . . Route ------- -11/Scrapyard -10/Materials (discovered 4 exits: [*Mat x2] / *Min x2) -10/Mines (discovered 2 exits: [*Mat] / *Exi) -10/Exiles (discovered 2 exits: [*Min x2]) -9/Mines History --------- Turn | Location | Event 38 | -11/Scrapyard | Discovered new exit (range 12) 48 | -11/Scrapyard | Entered Materials 186 | -10/Materials | Discovered new exit (range 15) 270 | -10/Materials | Identified exit to Mines 304 | -10/Materials | Build established: Mutant 503 | -10/Materials | Discovered new exit (range 8) 706 | -10/Materials | Discovered new exit (range 12) 921 | -10/Materials | Entered Mines 1038 | -10/Mines | Discovered new exit (range 7) 1054 | -10/Mines | Deemed a non-threat by the Exiles lab entrance 1055 | -10/Mines | Discovered new exit (range 5) 1102 | -10/Mines | Learned location of 1 exit from Materials 1362 | -10/Mines | Entered Exiles 1403 | -10/Exiles | Discovered new exit (range 14) 1435 | -10/Exiles | Met 8R-AWN 1468 | -10/Exiles | Met EX-HEX 1577 | -10/Exiles | Met EX-DEC 1615 | -10/Exiles | Learned location of Zion (-6) 1714 | -10/Exiles | Discovered new exit (range 12) 1842 | -10/Exiles | Visited The Gauntlet 2108 | -10/Exiles | Met EX-BIN 3101 | -10/Exiles | Entered Mines 3106 | -9/Mines | Assembled infested the area 3107 | -9/Mines | Learned location of 2 exits from Materials 3122 | -9/Mines | Core integrity fell below 50% 3134 | -9/Mines | Core integrity fell below 20% 3155 | -9/Mines | Released all parts (2) 3156 | -9/Mines | Destroyed by D-53 Grenadier with Mini Grenade Launcher Last Messages --------------- Data stored: Materials exits (x2). 03109_ K-01 Serf collects debris. 03114_ Acquired derelict log, extracted data. World map updated: -10/Materials. 03120_ C-30 ARC bursts open, deploying its payload. 03120_ D-53 Grenadier unfolds itself. 03120_ Lgt. Nuclear Core destroyed. 03120_ K-01 Serf collects debris. 03131_ Aluminum Leg destroyed. 03137_ The unstable cave ceiling collapses. 03138_ K-01 Serf collects debris. 03144_ The unstable cave ceiling collapses. 03146_ K-01 Serf collects debris. 03152_ The unstable cave ceiling collapses. 03152_ Lgt. Assault Rifle destroyed. 03154_ Aluminum Leg destroyed. 03154_ Lgt. Cannon destroyed. 03155_ The unstable cave ceiling collapses. 03155_ Released Lrg. Storage Unit. 03156_ The unstable cave ceiling collapses. Map ----- +----------------------------------------------------+ | | | | | | | | | | | | | | | | | ?????????????????????????????????????????????????? | | ?????????????????????????????????????????????????? | | ?????????????????????????????????????#???????????? | | ????????????????????????????###### ? ##??????????? | | ???????????????????########? ##?????????? | | ???????????????????# ## ??????????? | | ???????????????????# #??? ????????????? | | ???????????????????# ##?# #?????????????? | | ??????????????????## # ## #??????????????? | | ??????????????????# #??????????????? | | ?????????????????## d %#???????????????? | | ?????????????????# ##???????????????? | | ?????????????????# ##???????????????? | | ?????????????????## ##??????????????? | | ?????????????????## d ######?????????? | | ?????????????????# #?????????? | | ?????????????????## $ #?????????? | | ?????????????????## # @ ##### #?????????? | | ??????????????????# # !|= ##???????????????? | | ???????????????????# !!!*! ##????????????????? | | ???????????????????# !*!! ##?????????????????? | | ??????????????????# ! ##??????????????????? | | ??????????????????## ###???????????????????? | | ???????????????????## ##?????????????????????? | | ????????????????????# ###??????????????????????? | | ????????????????????# ###????????????????????????? | | ????????????????????##???????????????????????????? | | ?????????????????????????????????????????????????? | | ?????????????????????????????????????????????????? | | ?????????????????????????????????????????????????? | | ?????????????????????????????????????????????????? | | ?????????????????????????????????????????????????? | | ?????????????????????????????????????????????????? | | ?????????????????????????????????????????????????? | | ?????????????????????????????????????????????????? | | ?????????????????????????????????????????????????? | | ?????????????????????????????????????????????????? | | ?????????????????????????????????????????????????? | | ?????????????????????????????????????????????????? | | ?????????????????????????????????????????????????? | | ?????????????????????????????????????????????????? | | ?????????????????????????????????????????????????? | +----------------------------------------------------+ Best States ------------- Heat Dissipation 25 Energy Generation 14 Energy Capacity 250 Matter Stores 300 Matter Capacity 300 Sight Range 16 Terrain Scan Density 10 Evasion (%) 42 Item Schematics ----------------- Lrg. Storage Unit | -10/Materials | Hacked Lrg. Battery | -10/Materials | Hacked Com. Wheel | -10/Materials | Hacked Robot Schematics ------------------ None Fabricated ------------ Nothing Alien Tech Used ----------------- None Achievements -------------- None Challenges ------------ None Game ------ Seed SigixSmartbombCanceller Manual? 0 Play Time 00:28:09 Cumulative 84.1 hours Start 2020.02.04 @ 13:13:02 End 2020.02.04 @ 13:43:42 Sessions 1 Manual Loads 0 Difficulty Rogue Special Mode None Game No. 81 Rogue 81 Adventurer 0 Explorer 0 Win Type - Total 0 Types 0/0/0/0/0/0/0 Lore% 26 Gallery% 51 Achievement% 28 Wizard Run 0 Options --------- ASCII 0 Keyboard 1 Movement Vi Keybinds 0 Fullscreen 2 Font 32/Smallcaps Map View 76x50 Tactical HUD 1 Map Filters NONE Filters NONE Steam 1 RUN: 61972ca8-93ec-4dff-bbd8-33b8f9cc8821